[Event "*** Titled Tuesday Blitz"]
[Site "Chess.com"]
[Date "2018.04.03"]
[Round "2"]
[White "Vadim_Biliy"]
[Black "51616516516"]
[Result "1/2-1/2"]
[WhiteElo "2134"]
[BlackElo "2133"]
[TimeControl "180+2"]
[EndTime "13:25:05 PDT"]
[Termination "Game drawn by agreement"]

1. d4 {[%clk 0:02:57.8]} 1... Nf6 {[%clk 0:03:00.4]} 2. Nf3 {[%clk 0:02:57.7]}
2... g6 {[%clk 0:03:00.1]} 3. e3 {[%clk 0:02:57.4]} 3... c5 {[%clk 0:02:53.8]}
4. Be2 {[%clk 0:02:57.8]} 4... Bg7 {[%clk 0:02:53.6]} 5. O-O {[%clk 0:02:58.5]}
5... b6 {[%clk 0:02:55]} 6. b3 {[%clk 0:02:59.3]} 6... d6 {[%clk 0:02:56.4]} 7.
Bb2 {[%clk 0:02:57.2]} 7... Nbd7 {[%clk 0:02:57.6]} 8. d5 {[%clk 0:02:54.3]}
8... O-O {[%clk 0:02:54.8]} 9. c4 {[%clk 0:02:51]} 9... a6 {[%clk 0:02:54.9]}
10. Nc3 {[%clk 0:02:48]} 10... Rb8 {[%clk 0:02:21.9]} 11. a4 {[%clk 0:02:45.7]}
11... Ne5 {[%clk 0:02:13.2]} 12. e4 {[%clk 0:02:36.8]} 12... Nxe4 {[%clk
0:02:08.4]} 13. Nxe5 {[%clk 0:02:30.2]} 13... Bxe5 {[%clk 0:02:05.3]} 14. Qd3
{[%clk 0:02:26.8]} 14... Nxc3 {[%clk 0:01:58.8]} 15. Bxc3 {[%clk 0:02:26.6]}
15... Bf5 {[%clk 0:02:00.3]} 16. Qe3 {[%clk 0:02:26.1]} 16... Bxc3 {[%clk
0:01:58.9]} 17. Qxc3 {[%clk 0:02:26.8]} 17... e5 {[%clk 0:01:06.4]} 18. h3
{[%clk 0:02:05.5]} 18... Qg5 {[%clk 0:01:02.7]} 19. Kh1 {[%clk 0:01:53.9]} 19...
Rfe8 {[%clk 0:01:03.6]} 20. a5 {[%clk 0:01:51.7]} 20... bxa5 {[%clk 0:00:54.5]}
21. Rxa5 {[%clk 0:01:51]} 21... Rb6 {[%clk 0:00:55.9]} 22. Rfa1 {[%clk
0:01:49.9]} 22... Reb8 {[%clk 0:00:52]} 23. R1a3 {[%clk 0:01:46.8]} 23... Bc8
{[%clk 0:00:43.8]} 24. Bd1 {[%clk 0:01:37.1]} 24... f5 {[%clk 0:00:43.8]} 25.
Qa1 {[%clk 0:01:33.9]} 25... e4 {[%clk 0:00:33.8]} 26. Ra2 {[%clk 0:01:32.5]}
26... f4 {[%clk 0:00:30.4]} 27. Qc1 {[%clk 0:01:32.2]} 27... h6 {[%clk
0:00:18.8]} 28. Qd2 {[%clk 0:01:24.9]} 28... Qh4 {[%clk 0:00:18.3]} 29. Kh2
{[%clk 0:00:58.5]} 29... f3 {[%clk 0:00:19.2]} 30. Qe3 {[%clk 0:00:46.9]} 30...
fxg2 {[%clk 0:00:13.8]} 31. Kxg2 {[%clk 0:00:47.5]} 31... Qg5+ {[%clk
0:00:06.5]} 32. Qxg5 {[%clk 0:00:46.9]} 32... hxg5 {[%clk 0:00:08.4]} 33. Bg4
{[%clk 0:00:38]} 33... Bxg4 {[%clk 0:00:05]} 34. hxg4 {[%clk 0:00:38.4]} 34...
Rxb3 {[%clk 0:00:05.9]} 35. Rxa6 {[%clk 0:00:39]} 35... R8b6 {[%clk 0:00:02.3]}
36. Ra8+ {[%clk 0:00:37.1]} 36... Kg7 {[%clk 0:00:03.7]} 37. R2a7+ {[%clk
0:00:37.8]} 37... Kf6 {[%clk 0:00:05.1]} 38. Re8 {[%clk 0:00:37.3]} 38... Rb7
{[%clk 0:00:04.7]} 39. Re6+ {[%clk 0:00:37.2]} 39... Kf7 {[%clk 0:00:06]} 40.
Rxb7+ {[%clk 0:00:36.9]} 40... Rxb7 {[%clk 0:00:06.5]} 41. Rxd6 {[%clk
0:00:37.7]} 41... Rb2 {[%clk 0:00:06.1]} 42. Re6 {[%clk 0:00:38.2]} 42... Rc2
{[%clk 0:00:07.3]} 43. Rxe4 {[%clk 0:00:38.3]} 43... Kf6 {[%clk 0:00:06.5]} 44.
Kg3 {[%clk 0:00:38.5]} 44... Kf7 {[%clk 0:00:06.5]} 45. f3 {[%clk 0:00:37.9]}
45... Kf6 {[%clk 0:00:07]} 46. Re6+ {[%clk 0:00:33.1]} 46... Kf7 {[%clk
0:00:08]} 47. Re4 {[%clk 0:00:32.9]} 47... Kf6 {[%clk 0:00:08.5]} 48. f4 {[%clk
0:00:33.8]} 48... Rc3+ {[%clk 0:00:08.1]} 49. Kf2 {[%clk 0:00:34]} 49... gxf4
{[%clk 0:00:09.2]} 50. Rxf4+ {[%clk 0:00:34.8]} 50... Ke5 {[%clk 0:00:10.2]} 51.
Rf7 {[%clk 0:00:31.2]} 51... Rxc4 {[%clk 0:00:10.8]} 52. d6 {[%clk 0:00:31.9]}
52... Kxd6 {[%clk 0:00:08.9]} 53. Rf6+ {[%clk 0:00:31.7]} 53... Ke5 {[%clk
0:00:10.1]} 54. Rxg6 {[%clk 0:00:32.6]} 54... Kf4 {[%clk 0:00:09.5]} 55. Kg2
{[%clk 0:00:29.4]} 55... Rc2+ {[%clk 0:00:10.2]} 56. Kh3 {[%clk 0:00:30.1]}
56... c4 {[%clk 0:00:11.1]} 57. Rf6+ {[%clk 0:00:30.1]} 57... Kg5 {[%clk
0:00:11.5]} 58. Rf5+ {[%clk 0:00:30.8]} 58... Kg6 {[%clk 0:00:12.9]} 59. Rc5
{[%clk 0:00:30.7]} 59... c3 {[%clk 0:00:13.7]} 60. Kh4 {[%clk 0:00:30.7]} 60...
Rc1 {[%clk 0:00:11.7]} 61. Rc6+ {[%clk 0:00:30.7]} 61... Kg7 {[%clk 0:00:13.3]}
62. Kg5 {[%clk 0:00:31.5]} 62... c2 {[%clk 0:00:10.9]} 63. Rc7+ {[%clk
0:00:32.3]} 63... Kf8 {[%clk 0:00:12.2]} 64. Kg6 {[%clk 0:00:31.4]} 64... Rg1
{[%clk 0:00:05.3]} 65. Rc8+ {[%clk 0:00:30.7]} 65... Ke7 {[%clk 0:00:05.6]} 66.
Rc7+ {[%clk 0:00:31.6]} 66... Kd6 {[%clk 0:00:05.4]} 67. Rxc2 {[%clk 0:00:31.6]}
67... Rxg4+ {[%clk 0:00:06.1]} 68. Kf5 {[%clk 0:00:32.5]} 68... Ra4 {[%clk
0:00:06.4]} 1/2-1/2

[Event "*** Titled Tuesday Blitz"]
[Site "Chess.com"]
[Date "2018.04.03"]
[Round "2"]
[White "Rumpel-VK"]
[Black "Mikhail_Golubev"]
[Result "1-0"]
[WhiteElo "2389"]
[BlackElo "2323"]
[TimeControl "180+2"]
[EndTime "13:25:09 PDT"]
[Termination "Rumpel-VK won by resignation"]

1. Nf3 {[%clk 0:01:04.8]} 1... d6 {[%clk 0:02:57.8]} 2. d4 {[%clk 0:01:05.3]}
2... Nf6 {[%clk 0:02:57.5]} 3. g3 {[%clk 0:01:06.5]} 3... g6 {[%clk 0:02:57.5]}
4. Bg2 {[%clk 0:01:07.8]} 4... Bg7 {[%clk 0:02:58.4]} 5. O-O {[%clk 0:01:09.3]}
5... O-O {[%clk 0:02:58.9]} 6. h3 {[%clk 0:01:10.6]} 6... Nbd7 {[%clk
0:02:54.3]} 7. d5 {[%clk 0:01:11.6]} 7... Nb6 {[%clk 0:02:50.8]} 8. Nc3 {[%clk
0:01:12.5]} 8... Bd7 {[%clk 0:02:49]} 9. a4 {[%clk 0:01:12.5]} 9... a5 {[%clk
0:02:46.6]} 10. e4 {[%clk 0:01:13.2]} 10... c6 {[%clk 0:02:44.7]} 11. Nd4 {[%clk
0:01:11.2]} 11... cxd5 {[%clk 0:02:42]} 12. exd5 {[%clk 0:01:12.2]} 12... Rc8
{[%clk 0:02:41.2]} 13. Re1 {[%clk 0:01:12.8]} 13... Rxc3 {[%clk 0:02:39.5]} 14.
bxc3 {[%clk 0:01:12.9]} 14... Nfxd5 {[%clk 0:02:39]} 15. Bd2 {[%clk 0:01:10.8]}
15... Qc8 {[%clk 0:02:32.6]} 16. Kh2 {[%clk 0:01:10.3]} 16... Nxc3 {[%clk
0:02:31.9]} 17. Bxc3 {[%clk 0:01:04.3]} 17... Qxc3 {[%clk 0:02:31.1]} 18. Nb3
{[%clk 0:01:04.9]} 18... Bxa4 {[%clk 0:02:21.3]} 19. Rb1 {[%clk 0:01:05.4]}
19... Qc7 {[%clk 0:02:15.5]} 20. Qe2 {[%clk 0:00:58.7]} 20... Bf6 {[%clk
0:02:11.3]} 21. Nxa5 {[%clk 0:00:58.8]} 21... Bc3 {[%clk 0:02:01.7]} 22. Qxe7
{[%clk 0:00:48.4]} 22... Qxe7 {[%clk 0:02:01.8]} 23. Rxe7 {[%clk 0:00:48.4]}
23... Bxa5 {[%clk 0:02:02.1]} 24. Rxb7 {[%clk 0:00:48.9]} 24... Nc4 {[%clk
0:01:56.1]} 25. Bd5 {[%clk 0:00:48.5]} 25... Ne5 {[%clk 0:01:47.1]} 26. Ra1
{[%clk 0:00:23.3]} 26... Bc6 {[%clk 0:01:34.1]} 27. Rxa5 {[%clk 0:00:20]} 27...
Bxb7 {[%clk 0:01:33]} 28. Bxb7 {[%clk 0:00:20.6]} 28... Rb8 {[%clk 0:01:31.7]}
29. Ra8 {[%clk 0:00:20.4]} 29... Rxa8 {[%clk 0:01:29.9]} 30. Bxa8 {[%clk
0:00:22.3]} 30... Kg7 {[%clk 0:01:27.2]} 31. f4 {[%clk 0:00:23.1]} 31... Nd7
{[%clk 0:01:25.8]} 32. Kg2 {[%clk 0:00:23]} 32... Kf6 {[%clk 0:01:26.4]} 33. Kf3
{[%clk 0:00:23.7]} 33... Nb6 {[%clk 0:01:25.1]} 34. Bc6 {[%clk 0:00:23.7]} 34...
d5 {[%clk 0:01:25.6]} 35. Ke3 {[%clk 0:00:23.4]} 35... Ke6 {[%clk 0:01:26.4]}
36. Kd4 {[%clk 0:00:24.1]} 36... Kd6 {[%clk 0:01:27.2]} 37. Be8 {[%clk
0:00:24.7]} 37... Ke7 {[%clk 0:01:25]} 38. Bc6 {[%clk 0:00:24.4]} 38... Kd6
{[%clk 0:01:26]} 39. Be8 {[%clk 0:00:25.4]} 39... Ke6 {[%clk 0:01:26.3]} 40. Bb5
{[%clk 0:00:24.6]} 40... Nc8 {[%clk 0:01:23.1]} 41. f5+ {[%clk 0:00:15.2]} 41...
gxf5 {[%clk 0:01:21.5]} 42. Bc6 {[%clk 0:00:15.4]} 42... Ne7 {[%clk 0:01:21.6]}
43. Bb7 {[%clk 0:00:16.1]} 43... Kd6 {[%clk 0:01:22.2]} 44. Ba6 {[%clk
0:00:14.7]} 44... f4 {[%clk 0:01:20.2]} 45. gxf4 {[%clk 0:00:15.1]} 45... Nf5+
{[%clk 0:01:19.2]} 46. Kd3 {[%clk 0:00:16.1]} 46... Kc5 {[%clk 0:01:19.8]} 47.
Bc8 {[%clk 0:00:16]} 47... Nd6 {[%clk 0:01:20]} 48. Bg4 {[%clk 0:00:16.5]} 48...
h6 {[%clk 0:01:20.1]} 49. Bh5 {[%clk 0:00:16.9]} 49... f6 {[%clk 0:01:19.4]} 50.
Bg6 {[%clk 0:00:17.9]} 50... Nc4 {[%clk 0:01:18]} 51. Ke2 {[%clk 0:00:18.3]}
51... Kd4 {[%clk 0:01:17.9]} 52. Kf3 {[%clk 0:00:19.3]} 52... Ne3 {[%clk
0:01:15.1]} 53. c3+ {[%clk 0:00:17.8]} 53... Kxc3 {[%clk 0:01:13]} 54. Kxe3
{[%clk 0:00:18.6]} 54... Kc4 {[%clk 0:01:13.5]} 55. Kf3 {[%clk 0:00:18.3]} 55...
Kd4 {[%clk 0:01:10.7]} 56. Kg4 {[%clk 0:00:18]} 56... Ke3 {[%clk 0:01:10.7]} 57.
h4 {[%clk 0:00:18.3]} 57... d4 {[%clk 0:01:11]} 58. h5 {[%clk 0:00:18.3]} 58...
d3 {[%clk 0:01:08.2]} 59. Bxd3 {[%clk 0:00:18.6]} 59... Kxd3 {[%clk 0:01:08.3]}
60. Kf5 {[%clk 0:00:19.2]} 60... Ke3 {[%clk 0:01:09.1]} 61. Kg6 {[%clk
0:00:16.8]} 61... Kxf4 {[%clk 0:01:09.3]} 62. Kxh6 {[%clk 0:00:17.7]} 62... Kg4
{[%clk 0:00:57.2]} 63. Kg6 {[%clk 0:00:17.9]} 63... f5 {[%clk 0:00:58.2]} 64. h6
{[%clk 0:00:18.6]} 64... f4 {[%clk 0:00:59.3]} 65. h7 {[%clk 0:00:19.4]} 65...
f3 {[%clk 0:00:57.6]} 66. h8=Q {[%clk 0:00:20.2]} 66... Kg3 {[%clk 0:00:58]} 67.
Qe5+ {[%clk 0:00:18.2]} 67... Kg2 {[%clk 0:00:57.3]} 68. Qe4 {[%clk 0:00:18.7]}
68... Kg3 {[%clk 0:00:57.4]} 69. Qe3 {[%clk 0:00:17.1]} 69... Kg2 {[%clk
0:00:57.8]} 70. Qg5+ {[%clk 0:00:17.5]} 70... Kf1 {[%clk 0:00:57.7]} 71. Kf5
{[%clk 0:00:16.2]} 71... f2 {[%clk 0:00:57.7]} 72. Kf4 {[%clk 0:00:16.6]} 72...
Ke2 {[%clk 0:00:54.9]} 73. Qe5+ {[%clk 0:00:16.8]} 73... Kd2 {[%clk 0:00:53.3]}
74. Qd4+ {[%clk 0:00:16.2]} 74... Ke1 {[%clk 0:00:52.3]} 75. Ke3 {[%clk
0:00:15]} 75... f1=N+ {[%clk 0:00:49.4]} 76. Kd3 {[%clk 0:00:14.9]} 1-0

[Event "*** Titled Tuesday Blitz"]
[Site "Chess.com"]
[Date "2018.04.03"]
[Round "2"]
[White "bascheyaro"]
[Black "Fandorine"]
[Result "0-1"]
[WhiteElo "2612"]
[BlackElo "2720"]
[TimeControl "180+2"]
[EndTime "13:25:22 PDT"]
[Termination "Fandorine won by resignation"]

1. d4 {[%clk 0:03:01.9]} 1... Nf6 {[%clk 0:03:00.7]} 2. c4 {[%clk 0:03:03.2]}
2... g6 {[%clk 0:03:01.7]} 3. Nf3 {[%clk 0:03:04.6]} 3... Bg7 {[%clk 0:03:03.1]}
4. Nc3 {[%clk 0:03:06.2]} 4... O-O {[%clk 0:03:04.5]} 5. Bf4 {[%clk 0:03:07.5]}
5... d6 {[%clk 0:03:05.6]} 6. e3 {[%clk 0:03:08.8]} 6... c5 {[%clk 0:03:07.1]}
7. Be2 {[%clk 0:03:09.5]} 7... Qb6 {[%clk 0:02:58.5]} 8. Qb3 {[%clk 0:03:10.3]}
8... Nc6 {[%clk 0:02:57.2]} 9. dxc5 {[%clk 0:02:58.4]} 9... Qxc5 {[%clk
0:02:49.9]} 10. Qb5 {[%clk 0:02:59.5]} 10... Nd7 {[%clk 0:02:24.1]} 11. O-O
{[%clk 0:02:29.8]} 11... a6 {[%clk 0:02:21.9]} 12. Qb3 {[%clk 0:02:16.7]} 12...
Qa5 {[%clk 0:02:11.2]} 13. Rfd1 {[%clk 0:02:14.4]} 13... Nc5 {[%clk 0:02:10.8]}
14. Qc2 {[%clk 0:02:14.9]} 14... Bf5 {[%clk 0:02:06.1]} 15. Qc1 {[%clk
0:02:13.2]} 15... Rac8 {[%clk 0:01:51.9]} 16. Nd4 {[%clk 0:02:05.6]} 16... Bd7
{[%clk 0:01:27.4]} 17. Nb3 {[%clk 0:02:02.3]} 17... Nxb3 {[%clk 0:01:10.2]} 18.
axb3 {[%clk 0:02:04.2]} 18... Qb6 {[%clk 0:01:10.9]} 19. Ra3 {[%clk 0:01:51.4]}
19... Be6 {[%clk 0:01:10.7]} 20. Qb1 {[%clk 0:01:48.4]} 20... Rfd8 {[%clk
0:01:02.8]} 21. Bf3 {[%clk 0:01:41.5]} 21... Qb4 {[%clk 0:00:49.7]} 22. Nd5
{[%clk 0:01:32.7]} 22... Bxd5 {[%clk 0:00:50.7]} 23. Bxd5 {[%clk 0:01:33.6]}
23... Ne5 {[%clk 0:00:46.1]} 24. Qa2 {[%clk 0:01:24.5]} 24... e6 {[%clk
0:00:42.7]} 25. Bf3 {[%clk 0:01:15.1]} 25... Nxf3+ {[%clk 0:00:36.8]} 26. gxf3
{[%clk 0:01:17]} 26... d5 {[%clk 0:00:35.1]} 27. Ra4 {[%clk 0:01:17.4]} 27...
Qc5 {[%clk 0:00:29.5]} 28. Kg2 {[%clk 0:01:08.7]} 28... d4 {[%clk 0:00:27.1]}
29. exd4 {[%clk 0:00:46.1]} 29... Rxd4 {[%clk 0:00:16.2]} 30. Be3 {[%clk
0:00:42.4]} 30... Rxd1 {[%clk 0:00:17.2]} 31. Bxc5 {[%clk 0:00:43.4]} 31... Rxc5
{[%clk 0:00:19.1]} 32. Ra5 {[%clk 0:00:44.9]} 32... Rc8 {[%clk 0:00:15.9]} 33.
Rg5 {[%clk 0:00:37.3]} 33... Rd2 {[%clk 0:00:14.9]} 34. Kf1 {[%clk 0:00:22.6]}
34... Bd4 {[%clk 0:00:14.3]} 35. Rg2 {[%clk 0:00:23.9]} 35... Rxb2 {[%clk
0:00:11.3]} 36. Qa4 {[%clk 0:00:21.5]} 36... Rd8 {[%clk 0:00:07.2]} 37. h4
{[%clk 0:00:20.2]} 37... Bc5 {[%clk 0:00:05.2]} 38. Kg1 {[%clk 0:00:21.2]} 38...
Rd1+ {[%clk 0:00:04.1]} 39. Kh2 {[%clk 0:00:22.7]} 39... Bd6+ {[%clk 0:00:05.5]}
40. f4 {[%clk 0:00:23.2]} 40... Bxf4+ {[%clk 0:00:06]} 41. Kh3 {[%clk
0:00:24.7]} 41... Rd3+ {[%clk 0:00:06.6]} 42. Kg4 {[%clk 0:00:26]} 42... Bd6
{[%clk 0:00:07.3]} 43. Qe8+ {[%clk 0:00:27.6]} 43... Bf8 {[%clk 0:00:08.5]} 44.
Rg3 {[%clk 0:00:28.3]} 44... Rd4+ {[%clk 0:00:09]} 45. Kh3 {[%clk 0:00:29.4]}
45... Rxf2 {[%clk 0:00:09.4]} 46. Qb8 {[%clk 0:00:30.5]} 46... b5 {[%clk
0:00:06.6]} 47. cxb5 {[%clk 0:00:31.4]} 47... axb5 {[%clk 0:00:08.5]} 48. Qb6
{[%clk 0:00:32.3]} 48... Rff4 {[%clk 0:00:09.5]} 49. Kg2 {[%clk 0:00:33]} 49...
Rxh4 {[%clk 0:00:10.4]} 50. Rf3 {[%clk 0:00:34.2]} 50... Rhg4+ {[%clk
0:00:11.2]} 51. Kf1 {[%clk 0:00:35.5]} 51... Rdf4 {[%clk 0:00:09.4]} 52. Rxf4
{[%clk 0:00:36.1]} 52... Rxf4+ {[%clk 0:00:11.3]} 53. Kg2 {[%clk 0:00:37.7]}
53... Rf5 {[%clk 0:00:13.2]} 54. Kg3 {[%clk 0:00:38.7]} 54... h5 {[%clk
0:00:14.1]} 55. Qb8 {[%clk 0:00:40]} 55... Kg7 {[%clk 0:00:15.1]} 56. Kg2 {[%clk
0:00:41.4]} 56... Be7 {[%clk 0:00:15.9]} 57. Qb7 {[%clk 0:00:42.5]} 57... Bf6
{[%clk 0:00:17.2]} 58. Qc6 {[%clk 0:00:43.9]} 58... h4 {[%clk 0:00:18.3]} 59.
Qd7 {[%clk 0:00:45.2]} 59... b4 {[%clk 0:00:16.5]} 60. Qd3 {[%clk 0:00:45.5]}
60... Bc3 {[%clk 0:00:17.5]} 61. Qe4 {[%clk 0:00:46.7]} 61... g5 {[%clk
0:00:18.6]} 62. Qg4 {[%clk 0:00:47.7]} 62... Kg6 {[%clk 0:00:19.5]} 63. Qe4
{[%clk 0:00:48.8]} 63... Kh5 {[%clk 0:00:18.5]} 64. Qa8 {[%clk 0:00:50]} 64...
g4 {[%clk 0:00:17.9]} 65. Qg8 {[%clk 0:00:50.8]} 65... h3+ {[%clk 0:00:18.9]}
66. Kh2 {[%clk 0:00:47.2]} 66... Be5+ {[%clk 0:00:19.7]} 67. Kg1 {[%clk
0:00:47.6]} 67... Bd4+ {[%clk 0:00:20.8]} 68. Kh2 {[%clk 0:00:48.3]} 68... Rf2+
{[%clk 0:00:21.4]} 69. Kg1 {[%clk 0:00:47.1]} 69... Rb2+ {[%clk 0:00:13.4]} 70.
Kf1 {[%clk 0:00:48]} 70... h2 {[%clk 0:00:11.7]} 71. Qxf7+ {[%clk 0:00:43.1]}
71... Kg5 {[%clk 0:00:08.4]} 72. Qe7+ {[%clk 0:00:43.5]} 72... Bf6 {[%clk
0:00:07.6]} 73. Qc5+ {[%clk 0:00:44.5]} 73... Kg6 {[%clk 0:00:08]} 74. Qc6
{[%clk 0:00:44.7]} 74... h1=Q+ {[%clk 0:00:07.9]} 75. Qxh1 {[%clk 0:00:44.9]}
75... Rb1+ {[%clk 0:00:09.3]} 0-1

[Event "*** Titled Tuesday Blitz"]
[Site "Chess.com"]
[Date "2018.04.03"]
[Round "2"]
[White "Eliwood44"]
[Black "dolynachess"]
[Result "0-1"]
[WhiteElo "2238"]
[BlackElo "2408"]
[TimeControl "180+2"]
[EndTime "13:25:34 PDT"]
[Termination "dolynachess won by resignation"]

1. d4 {[%clk 0:03:01.9]} 1... Nf6 {[%clk 0:03:00.5]} 2. Nf3 {[%clk 0:02:50.7]}
2... c5 {[%clk 0:03:02.4]} 3. d5 {[%clk 0:02:51.5]} 3... b5 {[%clk 0:03:01.7]}
4. Bg5 {[%clk 0:02:52.1]} 4... d6 {[%clk 0:02:57.4]} 5. Bxf6 {[%clk 0:02:52.7]}
5... exf6 {[%clk 0:02:57.9]} 6. a4 {[%clk 0:02:53.9]} 6... b4 {[%clk 0:02:58.8]}
7. e4 {[%clk 0:02:55.2]} 7... g6 {[%clk 0:02:57.1]} 8. Nbd2 {[%clk 0:02:53.1]}
8... Bg7 {[%clk 0:02:58]} 9. Bb5+ {[%clk 0:02:53.7]} 9... Nd7 {[%clk 0:02:57.3]}
10. Nc4 {[%clk 0:02:54.1]} 10... Qc7 {[%clk 0:02:56.8]} 11. O-O {[%clk
0:02:48.2]} 11... O-O {[%clk 0:02:57]} 12. Re1 {[%clk 0:02:45.9]} 12... Bb7
{[%clk 0:02:32.5]} 13. a5 {[%clk 0:02:44.6]} 13... Ne5 {[%clk 0:02:27.9]} 14.
Nfxe5 {[%clk 0:02:37.7]} 14... fxe5 {[%clk 0:02:28.2]} 15. a6 {[%clk 0:02:35.6]}
15... Bc8 {[%clk 0:02:29.1]} 16. Qe2 {[%clk 0:02:32.4]} 16... Rb8 {[%clk
0:02:25.2]} 17. Na5 {[%clk 0:02:25.6]} 17... f5 {[%clk 0:02:16.8]} 18. Nc6
{[%clk 0:02:20.5]} 18... Rb6 {[%clk 0:02:17.7]} 19. exf5 {[%clk 0:02:18.1]}
19... gxf5 {[%clk 0:02:16.8]} 20. f4 {[%clk 0:02:18.2]} 20... e4 {[%clk
0:02:14.4]} 21. Ra2 {[%clk 0:02:07.7]} 21... Kh8 {[%clk 0:02:12.8]} 22. Kh1
{[%clk 0:02:06.7]} 22... Rg8 {[%clk 0:02:09.1]} 23. Bc4 {[%clk 0:02:02.9]} 23...
Bf6 {[%clk 0:02:06.7]} 24. g3 {[%clk 0:01:44]} 24... Bd7 {[%clk 0:02:04.8]} 25.
Rd1 {[%clk 0:01:39.2]} 25... Rg7 {[%clk 0:01:56.1]} 26. Qh5 {[%clk 0:01:33]}
26... Rg6 {[%clk 0:01:51.3]} 27. c3 {[%clk 0:01:10.3]} 27... bxc3 {[%clk
0:01:46.9]} 28. bxc3 {[%clk 0:01:12.2]} 28... Bxc3 {[%clk 0:01:44.6]} 29. Ne7
{[%clk 0:01:12.6]} 29... Rf6 {[%clk 0:01:28]} 30. Qg5 {[%clk 0:01:00]} 30... Qd8
{[%clk 0:01:21.5]} 31. Nc6 {[%clk 0:00:51.2]} 31... Rxc6 {[%clk 0:01:12.8]} 32.
dxc6 {[%clk 0:00:53.1]} 32... Bxc6 {[%clk 0:01:14]} 33. h4 {[%clk 0:00:26.9]}
33... d5 {[%clk 0:01:03]} 34. Bf1 {[%clk 0:00:13.8]} 34... Qf8 {[%clk
0:00:55.3]} 35. Rc2 {[%clk 0:00:12.7]} 35... Bb4 {[%clk 0:00:42.4]} 36. Rb1
{[%clk 0:00:11.4]} 36... Rg6 {[%clk 0:00:37.9]} 37. Qh5 {[%clk 0:00:12.5]} 37...
d4 {[%clk 0:00:36.8]} 38. Bh3 {[%clk 0:00:07.8]} 38... d3 {[%clk 0:00:35.1]} 39.
Rc4 {[%clk 0:00:08.2]} 39... e3+ {[%clk 0:00:35.1]} 40. Kh2 {[%clk 0:00:08.1]}
40... e2 {[%clk 0:00:30.9]} 41. Bxf5 {[%clk 0:00:09]} 41... Rh6 {[%clk
0:00:26.2]} 42. Qg5 {[%clk 0:00:07.8]} 42... e1=Q {[%clk 0:00:26.7]} 43. Rxe1
{[%clk 0:00:08.8]} 43... Bxe1 {[%clk 0:00:27.6]} 44. Rxc5 {[%clk 0:00:10.2]}
44... Qxc5 {[%clk 0:00:16.5]} 45. Qd8+ {[%clk 0:00:10.7]} 45... Kg7 {[%clk
0:00:15.4]} 46. Qc7+ {[%clk 0:00:11.5]} 46... Kf6 {[%clk 0:00:15.7]} 47. Qd8+
{[%clk 0:00:11.7]} 47... Kxf5 {[%clk 0:00:15.6]} 48. Qg5+ {[%clk 0:00:11.7]}
48... Ke4 {[%clk 0:00:17]} 49. Qxc5 {[%clk 0:00:12.7]} 49... d2 {[%clk
0:00:14.5]} 50. Qc4+ {[%clk 0:00:12.4]} 50... Ke3 {[%clk 0:00:15.6]} 51. Qc3+
{[%clk 0:00:12.9]} 51... Ke2 {[%clk 0:00:16.5]} 52. Qc4+ {[%clk 0:00:14.3]}
52... Kf2 {[%clk 0:00:17.4]} 53. Qd4+ {[%clk 0:00:15.5]} 53... Kf3 {[%clk
0:00:18.1]} 54. Qd3+ {[%clk 0:00:16.1]} 54... Kf2 {[%clk 0:00:19.4]} 55. Qd4+
{[%clk 0:00:16.4]} 55... Kf3 {[%clk 0:00:20.5]} 56. Qd3+ {[%clk 0:00:17.5]}
56... Kg4 {[%clk 0:00:21.6]} 57. Qe2+ {[%clk 0:00:18.2]} 57... Kf5 {[%clk
0:00:22.5]} 58. Qe5+ {[%clk 0:00:17.8]} 58... Kg6 {[%clk 0:00:22.1]} 59. Qg5+
{[%clk 0:00:18.5]} 59... Kf7 {[%clk 0:00:22.4]} 60. Qxh6 {[%clk 0:00:10.2]}
60... d1=Q {[%clk 0:00:18.5]} 61. Qxc6 {[%clk 0:00:11]} 61... Qe2+ {[%clk
0:00:13.6]} 62. Kh3 {[%clk 0:00:11.3]} 62... Qe6+ {[%clk 0:00:14.3]} 63. Qxe6+
{[%clk 0:00:11.5]} 63... Kxe6 {[%clk 0:00:16.2]} 64. Kg4 {[%clk 0:00:12.8]}
64... Kf6 {[%clk 0:00:16.1]} 65. h5 {[%clk 0:00:13.6]} 65... h6 {[%clk
0:00:15.4]} 66. Kf3 {[%clk 0:00:14.6]} 66... Kf5 {[%clk 0:00:12.6]} 67. g4+
{[%clk 0:00:15.9]} 67... Ke6 {[%clk 0:00:13.9]} 68. Ke4 {[%clk 0:00:17.2]} 68...
Bd2 {[%clk 0:00:14.2]} 69. Kf3 {[%clk 0:00:15.5]} 69... Kd5 {[%clk 0:00:14.9]}
70. f5 {[%clk 0:00:09.3]} 70... Ke5 {[%clk 0:00:14.9]} 71. Ke2 {[%clk 0:00:10]}
71... Bg5 {[%clk 0:00:15.2]} 72. Kd3 {[%clk 0:00:11.4]} 72... Kf4 {[%clk
0:00:16.3]} 73. Kc4 {[%clk 0:00:12.8]} 73... Kxg4 {[%clk 0:00:17.4]} 74. Kd5
{[%clk 0:00:14]} 74... Kxf5 {[%clk 0:00:18.3]} 0-1